fUSD/lending_fUSD_20251024
["ID","MTS","AMOUNT","RATE_DAILY","PERIOD"]
[392265062,1761292242757,-1000.0,0.00039819,7]
[392265063,1761292242767,-794.0,0.00039823,7]
[392265064,1761292242777,-8008.516388,0.00039825,15]
[392265065,1761292242787,-237.38364,0.0003983,2]
[392265066,1761292242797,-864.0,0.00039835,2]
[392265067,1761292242807,-1425.0,0.0003985,2]
[392265068,1761292242816,-168.0,0.00039852,2]
[392265069,1761292242825,-794.0,0.00039853,2]
[392265070,1761292242834,-334.5472959,0.00039883,2]
[392265071,1761292242846,-287.61899177,0.00039883,2]
[392265072,1761292242857,-864.0,0.0003989,2]
[392265073,1761292242867,-267.5,0.0003989,21]
[392265074,1761292242876,-150.0,0.00039895,7]
[392265075,1761292242886,-500.0,0.00039899,2]
[392265076,1761292242896,-191.51363597,0.000399,2]
[392265077,1761292242905,-1500.0,0.000399,14]
[392265078,1761292242916,-1000.0,0.00039907,7]
[392265079,1761292242926,-306.84,0.00039913,2]
[392265080,1761292242935,-14704.17880189,0.00039935,15]
[392265081,1761292242946,-864.0,0.00039945,2]
[392265082,1761292242957,-17879.8468135,0.0003996,3]
[392265083,1761292242967,-35759.6936269,0.0003997,3]
[392265084,1761292242975,-27731.0004998,0.0003997,3]
[392265085,1761292242985,-1425.0,0.00039976,2]
[392265086,1761292242994,-151.0,0.0003998,120]
[392265087,1761292243003,-151.0,0.0003998,120]
[392265088,1761292243012,-151.0,0.0003998,120]
[392265089,1761292243022,-151.0,0.0003998,120]
[392265090,1761292243031,-264.07043,0.0003998,120]
[392265091,1761292243041,-151.0,0.0003998,120]
[392265092,1761292243051,-151.0,0.0003998,120]
[392265093,1761292243060,-151.0,0.0003998,120]
[392265094,1761292243070,-293.384748,0.0003998,120]
[392265095,1761292243079,-151.0,0.0003998,120]
[392265096,1761292243089,-151.0,0.0003998,120]
[392265097,1761292243101,-151.0,0.0003998,120]
[392265098,1761292243111,-151.0,0.0003998,120]
[392265099,1761292243120,-426.240006,0.0003998,30]
[392265101,1761292243130,-426.240006,0.0003998,30]
[392265103,1761292243140,-151.0,0.0003998,14]
[392265105,1761292243149,-426.240006,0.0003998,30]
[392265107,1761292243159,-151.0,0.0003998,120]
[392265109,1761292243168,-426.240006,0.0003998,30]
[392265110,1761292243178,-151.0,0.0003998,14]
[392265111,1761292243187,-151.0,0.0003998,120]
[392265112,1761292243196,-151.0,0.0003998,120]
[392265113,1761292243206,-154.894936,0.0003998,120]
[392265114,1761292243215,-151.0,0.0003998,120]
[392265115,1761292243225,-151.0,0.0003998,120]
[392265116,1761292243234,-211.158551,0.0003998,120]
[392265117,1761292243243,-211.158551,0.0003998,120]
[392265118,1761292243252,-211.158551,0.0003998,120]
[392265119,1761292243262,-211.158551,0.0003998,120]
[392265120,1761292243271,-151.0,0.0003998,120]
[392265121,1761292243281,-151.0,0.0003998,120]
[392265123,1761292243291,-151.0,0.0003998,120]
[392265125,1761292243301,-151.0,0.0003998,120]
[392265127,1761292243312,-246.697263,0.0003998,120]
[392265129,1761292243322,-151.0,0.0003998,120]
[392265131,1761292243333,-151.0,0.0003998,120]
[392265134,1761292243345,-151.0,0.0003998,120]
[392265136,1761292243355,-151.0,0.0003998,120]
[392265138,1761292243365,-151.0,0.0003998,120]
[392265140,1761292243375,-151.0,0.0003998,120]
[392265142,1761292243384,-53639.5404404,0.0003998,3]
[392265144,1761292243395,-83193.0014993,0.0003998,3]
[392265146,1761292243404,-500.0,0.00039989,7]
[392265147,1761292243415,-500.0,0.00039989,30]
[392265148,1761292243425,-151.0,0.0003999,120]
[392265149,1761292243434,-151.0,0.0003999,120]
[392265151,1761292243444,-151.0,0.0003999,120]
[392265153,1761292243454,-151.0,0.0003999,120]
[392265155,1761292243464,-151.0,0.0003999,120]
[392265157,1761292243473,-219.308696,0.0003999,120]
[392265159,1761292243482,-151.0,0.0003999,120]
[392265160,1761292243491,-227.806637,0.0003999,120]
[392265161,1761292243500,-156.335908,0.0003999,120]
[392265162,1761292243509,-151.0,0.0003999,120]
[392265163,1761292243519,-151.0,0.0003999,120]
[392265164,1761292243528,-151.0,0.0003999,120]
[392265165,1761292243538,-151.0,0.0003999,120]
[392265166,1761292243547,-2272.212768,0.0003999,120]
[392265167,1761292243557,-151.0,0.0003999,120]
[392265168,1761292243567,-151.0,0.0003999,120]
[392265169,1761292243576,-151.0,0.0003999,120]
[392265170,1761292243585,-151.0,0.0003999,120]
[392265171,1761292243597,-606.417829,0.0003999,120]
[392265172,1761292243606,-606.417829,0.0003999,120]
[392265173,1761292243620,-151.0,0.0003999,120]
[392265174,1761292243630,-153.056033,0.0003999,120]
[392265175,1761292243640,-606.417829,0.0003999,120]
[392265176,1761292243650,-151.0,0.0003999,120]
[392265177,1761292243660,-623.224981,0.0003999,120]
[392265178,1761292243669,-606.417829,0.0003999,120]
[392265179,1761292243679,-151.0,0.0003999,120]
[392265180,1761292243690,-151.0,0.0003999,120]
[392265181,1761292243700,-623.224981,0.0003999,120]
[392265182,1761292243709,-151.0,0.0003999,10]
[392265183,1761292243719,-151.0,0.0003999,120]
[392265184,1761292243728,-623.224981,0.0003999,120]
[392265185,1761292243737,-623.224981,0.0003999,120]
[392265186,1761292243746,-151.0,0.0003999,120]
[392265187,1761292243756,-151.0,0.0003999,120]
[392265188,1761292243766,-151.0,0.0003999,120]
[392265189,1761292243775,-151.0,0.0003999,120]
[392265190,1761292243784,-151.0,0.0003999,120]
[392265191,1761292243793,-151.0,0.0003999,120]
[392265192,1761292243802,-151.0,0.0003999,60]
[392265193,1761292243813,-151.0,0.0003999,120]
[392265194,1761292243822,-151.0,0.0003999,120]
[392265195,1761292243831,-151.0,0.0003999,60]
[392265196,1761292243841,-151.0,0.0003999,120]
[392265197,1761292243853,-151.0,0.0003999,120]
[392265198,1761292243862,-151.0,0.0003999,120]
[392265199,1761292243872,-151.0,0.0003999,120]
[392265200,1761292243881,-282.351734,0.0003999,120]
[392265201,1761292243891,-297.754834,0.0003999,120]
[392265202,1761292243899,-151.0,0.0003999,120]
[392265203,1761292243909,-151.0,0.0003999,120]
[392265204,1761292243918,-151.0,0.0003999,120]
[392265205,1761292243928,-151.0,0.0003999,30]
[392265206,1761292243938,-151.0,0.0003999,120]
[392265207,1761292243947,-151.0,0.0003999,120]
[392265208,1761292243956,-151.0,0.0003999,120]
[392265209,1761292243965,-151.0,0.0003999,120]
[392265210,1761292243974,-151.0,0.0003999,120]
[392265211,1761292243983,-151.0,0.0003999,120]
[392265212,1761292243993,-151.0,0.0003999,120]
[392265213,1761292244002,-151.0,0.0003999,120]
[392265214,1761292244011,-153.233246,0.0003999,120]
[392265215,1761292244021,-151.0,0.0003999,120]
[392265216,1761292244031,-151.0,0.0003999,120]
[392265218,1761292244040,-151.0,0.0003999,120]
[392265220,1761292244049,-155.184871,0.0003999,120]
[392265222,1761292244058,-151.4934,0.0003999,120]
[392265225,1761292244067,-151.0,0.0003999,120]
[392265228,1761292244076,-151.0,0.0003999,120]
[392265230,1761292244086,-151.0,0.0003999,120]
[392265233,1761292244097,-151.0,0.0003999,120]
[392265235,1761292244106,-151.0,0.0003999,30]
[392265236,1761292244116,-151.0,0.0003999,120]
[392265237,1761292244125,-151.0,0.0003999,120]
[392265238,1761292244134,-151.0,0.0003999,120]
[392265239,1761292244144,-151.0,0.0003999,30]
[392265240,1761292244153,-151.0,0.0003999,120]
[392265241,1761292244163,-151.0,0.0003999,120]
[392265242,1761292244172,-151.0,0.0003999,120]
[392265243,1761292244181,-189.801417,0.0003999,120]
[392265244,1761292244190,-125158.927694,0.0003999,3]
[392265245,1761292244199,-429.45251,0.0003999,120]
[392265246,1761292244208,-151.0,0.0003999,120]
[392265247,1761292244217,-429.45251,0.0003999,120]
[392265248,1761292244226,-151.0,0.0003999,120]
[392265249,1761292244235,-429.45251,0.0003999,120]
[392265250,1761292244245,-429.45251,0.0003999,120]
[392265251,1761292244256,-110924.001999,0.0003999,3]
[392265252,1761292244266,-151.0,0.0003999,120]
[392265253,1761292244276,-241.286011,0.0003999,120]
[392265254,1761292244285,-151.0,0.0003999,120]
[392265255,1761292244295,-151.0,0.0003999,120]
[392265256,1761292244304,-151.0,0.0003999,120]
[392265257,1761292244314,-151.0,0.0003999,120]
[392265258,1761292244324,-151.0,0.0003999,120]
[392265259,1761292244334,-151.0,0.0003999,120]
[392265260,1761292244347,-183.572284,0.0003999,120]
[392265261,1761292244356,-151.0,0.0003999,120]
[392265262,1761292244367,-151.0,0.0003999,120]
[392265263,1761292244377,-154.460102,0.0003999,120]
[392265264,1761292244386,-151.0,0.0003999,120]
[392265265,1761292244395,-216.167271,0.0003999,120]
[392265266,1761292244404,-216.167271,0.0003999,120]
[392265267,1761292244414,-216.167271,0.0003999,120]
[392265268,1761292244423,-154.556082,0.0003999,120]
[392265269,1761292244433,-154.071718,0.0003999,120]
[392265270,1761292244442,-216.167271,0.0003999,120]
[392265271,1761292244451,-151.0,0.0003999,120]
[392265272,1761292244461,-151.0,0.0003999,120]
[392265273,1761292244471,-151.0,0.0003999,120]
[392265274,1761292244480,-273.816879,0.0003999,120]
[392265275,1761292244489,-151.0,0.0003999,120]
[392265276,1761292244499,-151.0,0.0003999,120]
[392265277,1761292244508,-151.0,0.0003999,120]
[392265278,1761292244518,-156.344412,0.0003999,120]
[392265279,1761292244527,-151.0,0.0003999,120]
[392265280,1761292244537,-156.344412,0.0003999,120]
[392265281,1761292244547,-151.0,0.0003999,120]
[392265282,1761292244556,-156.344412,0.0003999,120]
[392265283,1761292244566,-151.0,0.0003999,120]
[392265284,1761292244576,-151.0,0.0003999,120]
[392265285,1761292244586,-156.344412,0.0003999,120]
[392265286,1761292244596,-151.0,0.0003999,120]
[392265287,1761292244605,-151.0,0.0003999,120]
[392265288,1761292244620,-151.0,0.0003999,120]
[392265289,1761292244630,-151.0,0.0003999,120]
[392265290,1761292244640,-151.0,0.0003999,120]
[392265291,1761292244650,-426.240006,0.0003999,30]
[392265292,1761292244659,-154.002616,0.0003999,120]
[392265293,1761292244669,-426.240006,0.0003999,30]
[392265294,1761292244679,-151.0,0.0003999,14]
[392265295,1761292244690,-426.240006,0.0003999,30]
[392265296,1761292244699,-426.240006,0.0003999,30]
[392265297,1761292244710,-151.0,0.0003999,120]
[392265298,1761292244719,-156.267247,0.0003999,14]
[392265299,1761292244729,-151.0,0.0003999,120]
[392265300,1761292244738,-151.0,0.0003999,120]
[392265301,1761292244748,-151.0,0.0003999,120]
[392265302,1761292244757,-177.24027425,0.0003999,7]
[392265303,1761292244767,-151.0,0.0003999,120]
[392265304,1761292244777,-153.49,0.0003999,2]
[392265305,1761292244787,-211.158551,0.0003999,120]
[392265306,1761292244796,-211.158551,0.0003999,120]
[392265307,1761292244807,-211.158551,0.0003999,120]
[392265308,1761292244816,-211.158551,0.0003999,120]
[392265309,1761292244826,-151.0,0.0003999,120]
[392265310,1761292244835,-174.078811,0.0003999,120]
[392265311,1761292244844,-224.412732,0.0003999,120]
[392265312,1761292244855,-151.0,0.0003999,120]
[392265313,1761292244865,-153.123272,0.0003999,120]
[392265314,1761292244874,-286.57494,0.0003999,120]
[392265315,1761292244883,-151.0,0.0003999,120]
[392265316,1761292244893,-151.0,0.0003999,120]
[392265317,1761292244902,-254.241398,0.0003999,120]
[392265318,1761292244911,-151.0,0.0003999,120]
[392265319,1761292244921,-158.52050271,0.00039994,7]
[392265320,1761292244931,-525.20728981,0.00039999,30]
[392265321,1761292244940,-263.12789478,0.00039999,30]
[392265322,1761292244949,-500.0,0.00039999,30]
[392265323,1761292244958,-265.92626081,0.00039999,30]
[392265324,1761292244967,-500.0,0.00039999,7]
[392265325,1761292244977,-500.0,0.00039999,30]
[392265326,1761292244987,-500.0,0.00039999,2]
[392265327,1761292244996,-864.0,0.0004,2]
[392265328,1761292245006,-13865.5002499,0.0004,3]
[392265329,1761292245016,-2494.82064853,0.0004,10]
[392265330,1761292245026,-1000.0,0.0004,5]
[392265331,1761292245036,-300.4081794,0.0004,2]
[392265332,1761292245046,-2000.0,0.0004,5]
[392265333,1761292245055,-80139.78041411,0.0004,120]
[392265334,1761292245064,-56646.88271826,0.0004,2]
[392265335,1761292245075,-12500.0,0.0004,120]
[392265336,1761292245085,-12500.0,0.0004,120]
[392265337,1761292245094,-12500.0,0.0004,120]
[392265338,1761292245104,-12500.0,0.0004,120]
[392265339,1761292245114,-151.0,0.0004,120]
[392265340,1761292245124,-151.0,0.0004,120]
[392265341,1761292245134,-190.202171,0.0004,120]
[392265342,1761292245144,-190.202171,0.0004,120]
[392265343,1761292245153,-151.0,0.0004,120]
[392265344,1761292245163,-190.202171,0.0004,120]
[392265345,1761292245173,-190.202171,0.0004,120]
[392265346,1761292245182,-151.0,0.0004,120]
[392265347,1761292245192,-151.0,0.0004,15]
[392265348,1761292245201,-151.0,0.0004,120]
[392265349,1761292245211,-151.0,0.0004,120]
[392265350,1761292245220,-151.0,0.0004,120]
[392265351,1761292245230,-151.0,0.0004,15]
[392265352,1761292245239,-151.0,0.0004,120]
[392265353,1761292245248,-151.0,0.0004,120]
[392265354,1761292245258,-151.0,0.0004,120]
[392265355,1761292245268,-154.30712,0.0004,120]
[392265356,1761292245277,-151.0,0.0004,120]
[392265357,1761292245287,-515.315031,0.0004,120]
[392265358,1761292245296,-151.0,0.0004,120]
[392265359,1761292245307,-151.0,0.0004,120]
[392265360,1761292245316,-515.315031,0.0004,120]
[392265361,1761292245508,-173.888232,0.0004,120]
[392265362,1761292245529,-515.315031,0.0004,120]
[392265363,1761292245539,-173.888232,0.0004,120]
[392265364,1761292245548,-515.315031,0.0004,120]
[392265365,1761292245559,-173.888232,0.0004,120]
[392265366,1761292245568,-173.888232,0.0004,120]
[392265367,1761292245578,-151.0,0.0004,120]
[392265368,1761292245588,-151.0,0.0004,120]
[392265369,1761292245597,-155.279864,0.0004,120]
[392265370,1761292245607,-153.485852,0.0004,120]
[392265371,1761292245622,-178.641397,0.0004,120]
[392265372,1761292245632,-151.0,0.0004,120]
[392265373,1761292245642,-151.0,0.0004,120]
[392265374,1761292245651,-151.0,0.0004,120]
[392265375,1761292245662,-151.0,0.0004,120]
[392265376,1761292245672,-151.0,0.0004,120]
[392265377,1761292245681,-151.0,0.0004,120]
[392265378,1761292245694,-151.0,0.0004,120]
[392265379,1761292245703,-151.0,0.0004,120]
[392265380,1761292245713,-151.0,0.0004,120]
[392265381,1761292245723,-283.983787,0.0004,120]
[392265382,1761292245733,-151.0,0.0004,120]
[392265383,1761292245743,-151.0,0.0004,120]
[392265384,1761292245753,-213.636811,0.0004,120]
[392265385,1761292245762,-156.450772,0.0004,60]
[392265386,1761292245771,-152.852246,0.0004,120]
[392265387,1761292245781,-154.006066,0.0004,120]
[392265388,1761292245791,-151.0,0.0004,120]
[392265389,1761292245800,-151.0,0.0004,120]
[392265390,1761292245810,-151.0,0.0004,120]
[392265391,1761292245819,-263.317467,0.0004,120]
[392265392,1761292245829,-151.0,0.0004,120]
[392265393,1761292245839,-263.317467,0.0004,120]
[392265394,1761292245849,-263.317467,0.0004,120]
[392265395,1761292245858,-263.317467,0.0004,120]
[392265396,1761292245868,-151.0,0.0004,120]
[392265397,1761292245878,-162.291008,0.0004,120]
[392265398,1761292245887,-151.0,0.0004,120]
[392265399,1761292245896,-151.0,0.0004,120]
[392265400,1761292245905,-151.0,0.0004,120]
[392265401,1761292245915,-151.0,0.0004,120]
[392265402,1761292245925,-151.0,0.0004,120]
[392265403,1761292245934,-183.455001,0.0004,120]
[392265404,1761292245943,-151.0,0.0004,120]
[392265405,1761292245953,-234.551572,0.0004,120]
[392265406,1761292245962,-151.0,0.0004,120]
[392265407,1761292245971,-2272.212768,0.0004,120]
[392265408,1761292245981,-158.403957,0.0004,120]
[392265409,1761292245990,-151.0,0.0004,120]
[392265410,1761292245999,-151.0,0.0004,120]
[392265411,1761292246008,-606.417829,0.0004,120]
[392265412,1761292246018,-606.417829,0.0004,120]
[392265413,1761292246027,-151.0,0.0004,120]
[392265414,1761292246036,-606.417829,0.0004,120]
[392265415,1761292246045,-151.0,0.0004,120]
[392265416,1761292246055,-623.224981,0.0004,120]
[392265417,1761292246064,-606.417829,0.0004,120]
[392265419,1761292246073,-151.0,0.0004,120]
[392265420,1761292246083,-623.224981,0.0004,120]
[392265421,1761292246093,-151.0,0.0004,10]
[392265422,1761292246103,-151.0,0.0004,120]
[392265423,1761292246112,-623.224981,0.0004,120]
[392265424,1761292246121,-623.224981,0.0004,120]
[392265425,1761292246131,-151.0,0.0004,120]
[392265426,1761292246140,-151.0,0.0004,120]
[392265428,1761292246150,-151.0,0.0004,120]
[392265429,1761292246159,-151.0,0.0004,120]
[392265430,1761292246168,-151.0,0.0004,120]
[392265431,1761292246177,-154.42948,0.0004,120]
[392265432,1761292246187,-151.0,0.0004,60]
[392265433,1761292246196,-275.418584,0.0004,120]
[392265434,1761292246207,-151.0,0.0004,120]
[392265435,1761292246216,-151.0,0.0004,60]
[392265436,1761292246224,-151.0,0.0004,120]
[392265438,1761292246234,-151.0,0.0004,120]
[392265440,1761292246243,-151.0,0.0004,120]
[392265442,1761292246252,-151.0,0.0004,120]
[392265444,1761292246262,-151.0,0.0004,120]
[392265446,1761292246271,-151.0,0.0004,30]
[392265448,1761292246280,-151.0,0.0004,120]
[392265450,1761292246290,-151.0,0.0004,120]
[392265452,1761292246299,-151.0,0.0004,120]
[392265454,1761292246308,-151.0,0.0004,120]
[392265457,1761292246318,-151.0,0.0004,120]
[392265460,1761292246328,-157.912725,0.0004,120]
[392265463,1761292246337,-151.0,0.0004,120]
[392265465,1761292246348,-151.0,0.0004,120]
[392265467,1761292246357,-151.0,0.0004,120]
[392265469,1761292246366,-151.0,0.0004,120]
[392265471,1761292246377,-151.0,0.0004,120]
[392265473,1761292246389,-151.0,0.0004,120]
[392265474,1761292246399,-151.0,0.0004,120]
[392265475,1761292246408,-151.0,0.0004,30]
[392265476,1761292246420,-151.0,0.0004,120]
[392265477,1761292246430,-153.169342,0.0004,120]
[392265478,1761292246440,-151.0,0.0004,120]
[392265479,1761292246450,-173.460243,0.0004,30]
[392265480,1761292246460,-151.0,0.0004,120]
[392265481,1761292246469,-151.0,0.0004,120]
[392265482,1761292246479,-151.0,0.0004,120]
[392265483,1761292246488,-429.45251,0.0004,120]
[392265484,1761292246498,-151.0,0.0004,120]
[392265485,1761292246509,-429.45251,0.0004,120]
[392265486,1761292246519,-151.0,0.0004,120]
[392265487,1761292246529,-429.45251,0.0004,120]
[392265488,1761292246539,-429.45251,0.0004,120]
[392265489,1761292246549,-151.0,0.0004,120]
[392265490,1761292246559,-151.0,0.0004,120]
[392265491,1761292246568,-154.747179,0.0004,120]
[392265492,1761292246577,-151.0,0.0004,120]
[392265493,1761292246587,-151.0,0.0004,120]
[392265494,1761292246597,-151.0,0.0004,120]
[392265495,1761292246607,-151.0,0.0004,120]
[392265496,1761292246620,-151.0,0.0004,120]
[392265497,1761292246632,-216.167271,0.0004,120]
[392265498,1761292246641,-216.167271,0.0004,120]
[392265499,1761292246651,-216.167271,0.0004,120]
[392265500,1761292246662,-216.167271,0.0004,120]
[392265501,1761292246671,-151.0,0.0004,120]
[392265502,1761292246681,-151.0,0.0004,120]
[392265503,1761292246692,-212.575144,0.0004,120]
[392265504,1761292246702,-151.0,0.0004,120]
[392265505,1761292246711,-151.0,0.0004,120]
[392265506,1761292246721,-156.344412,0.0004,120]
[392265507,1761292246730,-151.0,0.0004,120]
[392265508,1761292246740,-156.344412,0.0004,120]
[392265509,1761292246749,-151.0,0.0004,120]
[392265510,1761292246759,-156.344412,0.0004,120]
[392265511,1761292246768,-151.0,0.0004,120]
[392265512,1761292246778,-153.78738,0.0004,120]
[392265513,1761292246787,-156.344412,0.0004,120]
[392265514,1761292246797,-151.0,0.0004,120]
[392265515,1761292246806,-151.0,0.0004,120]
[392265516,1761292246815,-151.0,0.0004,120]
[392265517,1761292246825,-151.0,0.0004,120]
[392265518,1761292246833,-151.0,0.0004,120]
[392265519,1761292246843,-426.240006,0.0004,30]
[392265520,1761292246854,-426.240006,0.0004,30]
[392265521,1761292246864,-426.240006,0.0004,30]
[392265522,1761292246873,-151.0,0.0004,14]
[392265523,1761292246883,-426.240006,0.0004,30]
[392265524,1761292246892,-151.0,0.0004,120]
[392265525,1761292246902,-151.0,0.0004,120]
[392265526,1761292246913,-215.611415,0.0004,120]
[392265527,1761292246923,-151.0,0.0004,120]
[392265528,1761292246934,-211.158551,0.0004,120]
[392265529,1761292246943,-211.158551,0.0004,120]
[392265530,1761292246953,-211.158551,0.0004,120]
[392265531,1761292246962,-211.158551,0.0004,120]
[392265532,1761292246972,-151.0,0.0004,120]
[392265533,1761292246981,-151.0,0.0004,120]
[392265534,1761292246991,-151.0,0.0004,120]
[392265535,1761292247001,-151.0,0.0004,120]
[392265536,1761292247011,-1425.0,0.00040006,2]
[392265537,1761292247020,-151.0,0.00040008,120]
[392265538,1761292247030,-151.0,0.00040008,90]
[392265539,1761292247040,-151.0,0.00040008,90]
[392265540,1761292247050,-151.0,0.00040008,120]
[392265541,1761292247059,-151.0,0.00040008,120]
[392265542,1761292247069,-151.0,0.00040008,120]
[392265543,1761292247079,-1425.0,0.00040009,2]
[392265544,1761292247088,-963.0,0.0004001,5]
[392265545,1761292247100,-1425.0,0.00040037,2]
[392265546,1761292247109,-233.23062855,0.00040042,2]
[392265547,1761292247119,-200.0,0.00040042,2]
[392265548,1761292247129,-352.0,0.00040043,2]
[392265549,1761292247138,-150.0,0.0004005,7]
[392265550,1761292247147,-500.0,0.00040051,30]
[392265551,1761292247156,-151.0,0.00040051,120]
[392265552,1761292247166,-151.0,0.00040051,120]
[392265553,1761292247176,-151.0,0.00040051,60]
[392265554,1761292247186,-151.0,0.00040051,120]
[392265555,1761292247196,-158.121996,0.00040051,120]
[392265556,1761292247206,-864.0,0.00040054,2]
[392265557,1761292247215,-151.0,0.00040066,120]
[392265558,1761292247225,-151.0,0.00040066,120]
[392265559,1761292247234,-151.0,0.00040066,120]
[392265560,1761292247243,-151.0,0.00040066,120]
[392265561,1761292247253,-151.0,0.00040066,120]
[392265562,1761292247262,-151.0,0.00040066,120]
[392265563,1761292247271,-151.0,0.00040066,120]
[392265564,1761292247281,-151.0,0.00040066,120]
[392265565,1761292247291,-155.251317,0.00040066,120]
[392265566,1761292247301,-17879.8468135,0.00040068,3]
[392265567,1761292247310,-13865.5002499,0.00040078,3]
[392265568,1761292247319,-500.0,0.00040078,30]
[392265569,1761292247329,-500.0,0.00040084,30]
[392265570,1761292247338,-500.0,0.00040087,7]
[392265571,1761292247349,-500.0,0.00040087,30]
[392265572,1761292247359,-151.0,0.00040088,120]
[392265573,1761292247369,-151.0,0.00040088,120]
[392265574,1761292247378,-154.782639,0.00040088,120]
[392265575,1761292247388,-151.0,0.00040088,120]
[392265576,1761292247397,-151.901811,0.00040088,120]
[392265577,1761292247407,-151.0,0.00040088,120]
[392265578,1761292247416,-151.0,0.00040088,120]
[392265579,1761292247425,-151.0,0.00040088,120]
[392265580,1761292247435,-151.0,0.00040088,120]
[392265581,1761292247444,-151.0,0.00040088,120]
[392265582,1761292247453,-151.0,0.00040088,120]
[392265583,1761292247462,-151.0,0.00040088,120]
[392265584,1761292247473,-151.0,0.00040088,120]
[392265585,1761292247482,-151.0,0.00040088,120]
[392265586,1761292247491,-151.0,0.00040088,120]
[392265587,1761292247500,-151.0,0.00040088,120]
[392265588,1761292247510,-403.058019,0.00040088,120]
[392265589,1761292247519,-403.058019,0.00040088,120]
[392265590,1761292247528,-151.0,0.00040088,120]
[392265591,1761292247538,-403.058019,0.00040088,120]
[392265592,1761292247548,-403.058019,0.00040088,120]
[392265593,1761292247557,-1425.0,0.00040099,2]
[392265594,1761292247567,-864.0,0.00040109,2]
[392265595,1761292247576,-487.24,0.00040137,2]
[392265596,1761292247586,-950.92,0.00040137,2]
[392265597,1761292247596,-1425.0,0.00040143,2]
[392265598,1761292247610,-402.74451114,0.00040158,2]
[392265599,1761292247622,-864.0,0.00040164,2]
[392265600,1761292247631,-14704.17880189,0.0004017,15]
[392265601,1761292247641,-17879.8468135,0.00040184,3]
[392265602,1761292247651,-1000.0,0.00040187,7]
[392265603,1761292247660,-1425.0,0.00040194,2]
[392265604,1761292247670,-1535.0,0.000402,7]
[392265605,1761292247680,-13865.5002499,0.00040205,3]
[392265606,1761292247691,-269.25,0.0004021,14]
[392265607,1761292247700,-13865.5002499,0.00040211,3]
[392265608,1761292247710,-1000.0,0.00040215,7]
[392265609,1761292247719,-13865.5002499,0.00040218,3]
[392265610,1761292247729,-864.0,0.00040219,2]
[392265611,1761292247739,-17879.8468135,0.0004022,3]
[392265612,1761292247748,-17879.8468135,0.0004022,3]
[392265613,1761292247757,-8008.516388,0.00040223,15]
[392265614,1761292247767,-13865.5002499,0.00040228,3]
[392265615,1761292247776,-151.0,0.0004023,120]
[392265616,1761292247786,-151.0,0.0004023,120]
[392265617,1761292247796,-2272.212768,0.0004023,120]